[Event "*** SCC Grand Prix: Titled Tuesday Blitz"]
[Site "Chess.com"]
[Date "2020.08.04"]
[Round "9"]
[White "BJthechessgod"]
[Black "Vladislav_Chizhikov"]
[Result "1/2-1/2"]
[WhiteElo "2272"]
[BlackElo "2439"]
[TimeControl "180+1"]
[EndTime "15:28:16 PDT"]
[Termination "Game drawn - insufficient material"]

1. e4 {[%clk 0:00:36.1]} 1... e6 {[%clk 0:02:44.7]} 2. d4 {[%clk 0:00:34.3]}
2... d5 {[%clk 0:02:44.3]} 3. Nc3 {[%clk 0:00:34.7]} 3... Bb4 {[%clk 0:02:43.4]}
4. e5 {[%clk 0:00:35.2]} 4... Ne7 {[%clk 0:02:42.1]} 5. a3 {[%clk 0:00:35.7]}
5... Bxc3+ {[%clk 0:02:42]} 6. bxc3 {[%clk 0:00:36.6]} 6... c5 {[%clk
0:02:42.4]} 7. Nf3 {[%clk 0:00:36.9]} 7... Qc7 {[%clk 0:02:41.9]} 8. a4 {[%clk
0:00:32.1]} 8... b6 {[%clk 0:02:39.2]} 9. Be2 {[%clk 0:00:30.3]} 9... Ba6 {[%clk
0:02:38.1]} 10. O-O {[%clk 0:00:29.4]} 10... Bxe2 {[%clk 0:02:37]} 11. Qxe2
{[%clk 0:00:30.3]} 11... O-O {[%clk 0:02:37.1]} 12. Ba3 {[%clk 0:00:29.7]} 12...
h5 {[%clk 0:02:32.3]} 13. Qb5 {[%clk 0:00:26]} 13... Nd7 {[%clk 0:02:24.7]} 14.
a5 {[%clk 0:00:16.6]} 14... Nf5 {[%clk 0:02:19.3]} 15. axb6 {[%clk 0:00:16.5]}
15... axb6 {[%clk 0:02:20.2]} 16. Bb2 {[%clk 0:00:14]} 16... Rfc8 {[%clk
0:02:14.7]} 17. Rxa8 {[%clk 0:00:11.3]} 17... Rxa8 {[%clk 0:02:15.6]} 18. Ra1
{[%clk 0:00:12.2]} 18... Ra7 {[%clk 0:02:10.7]} 19. Rxa7 {[%clk 0:00:11.4]}
19... Qxa7 {[%clk 0:02:11.6]} 20. h3 {[%clk 0:00:09.6]} 20... h4 {[%clk
0:02:10.7]} 21. Kh2 {[%clk 0:00:09.1]} 21... Nf8 {[%clk 0:02:10.5]} 22. c4
{[%clk 0:00:08.5]} 22... dxc4 {[%clk 0:02:00.4]} 23. Qxc4 {[%clk 0:00:09.4]}
23... cxd4 {[%clk 0:01:56.1]} 24. Nxd4 {[%clk 0:00:09.5]} 24... Nxd4 {[%clk
0:01:52.2]} 25. Bxd4 {[%clk 0:00:10.4]} 25... Qb8 {[%clk 0:01:48.8]} 26. Qb5
{[%clk 0:00:09.9]} 26... Qc8 {[%clk 0:01:45.9]} 27. c4 {[%clk 0:00:08.2]} 27...
Nd7 {[%clk 0:01:44.3]} 28. Bxb6 {[%clk 0:00:06.8]} 28... Qb7 {[%clk 0:01:35.2]}
29. c5 {[%clk 0:00:06.7]} 29... Qd5 {[%clk 0:01:35.6]} 30. Qe2 {[%clk
0:00:04.3]} 30... Nxe5 {[%clk 0:01:32.8]} 31. Bc7 {[%clk 0:00:03.5]} 31... Nc6
{[%clk 0:01:30.6]} 32. Bd6 {[%clk 0:00:03.7]} 32... g6 {[%clk 0:01:26]} 33. Qa6
{[%clk 0:00:04.2]} 33... Kg7 {[%clk 0:01:16.2]} 34. Qc8 {[%clk 0:00:04.4]} 34...
Kf6 {[%clk 0:00:32.6]} 35. Qh8+ {[%clk 0:00:04.1]} 35... Kf5 {[%clk 0:00:33]}
36. Qxh4 {[%clk 0:00:04.2]} 36... Qd4 {[%clk 0:00:20.1]} 37. g4+ {[%clk
0:00:03.4]} 37... Ke4 {[%clk 0:00:20.1]} 38. Qg3 {[%clk 0:00:03.1]} 38... Kd5
{[%clk 0:00:19]} 39. Qf3+ {[%clk 0:00:03.2]} 39... Qe4 {[%clk 0:00:18.8]} 40.
Qxe4+ {[%clk 0:00:03.4]} 40... Kxe4 {[%clk 0:00:19]} 41. Kg2 {[%clk 0:00:04.2]}
41... Nd4 {[%clk 0:00:18]} 42. Kg3 {[%clk 0:00:04]} 42... f5 {[%clk 0:00:17.1]}
43. gxf5 {[%clk 0:00:04.1]} 43... exf5 {[%clk 0:00:17.3]} 44. h4 {[%clk
0:00:04.5]} 44... Nc6 {[%clk 0:00:16.4]} 45. f3+ {[%clk 0:00:04.7]} 45... Ke3
{[%clk 0:00:15]} 46. Bf4+ {[%clk 0:00:04.8]} 46... Kd4 {[%clk 0:00:14.7]} 47.
Bd6 {[%clk 0:00:04.7]} 47... Ke3 {[%clk 0:00:14.7]} 48. Kg2 {[%clk 0:00:04]}
48... f4 {[%clk 0:00:14]} 49. Bc7 {[%clk 0:00:02.5]} 49... Nd4 {[%clk
0:00:12.7]} 50. Be5 {[%clk 0:00:01.9]} 50... Nc6 {[%clk 0:00:12.3]} 51. Bd6
{[%clk 0:00:02]} 51... Kd4 {[%clk 0:00:11.6]} 52. Bxf4 {[%clk 0:00:02.1]} 52...
Kxc5 {[%clk 0:00:11.8]} 53. Kg3 {[%clk 0:00:02.8]} 53... Kd5 {[%clk 0:00:12.3]}
54. Kg4 {[%clk 0:00:03.3]} 54... Ke6 {[%clk 0:00:12.8]} 55. Kg5 {[%clk
0:00:03.9]} 55... Kf7 {[%clk 0:00:13.1]} 56. Bg3 {[%clk 0:00:04.2]} 56... Nd4
{[%clk 0:00:12.8]} 57. f4 {[%clk 0:00:04.2]} 57... Nf3+ {[%clk 0:00:12.3]} 58.
Kg4 {[%clk 0:00:04.7]} 58... Nd4 {[%clk 0:00:13.1]} 59. Kg5 {[%clk 0:00:04.8]}
59... Ne6+ {[%clk 0:00:13]} 60. Kh6 {[%clk 0:00:05.1]} 60... Kf6 {[%clk
0:00:13.1]} 61. h5 {[%clk 0:00:05.7]} 61... gxh5 {[%clk 0:00:12.9]} 62. Kxh5
{[%clk 0:00:05.8]} 62... Kf5 {[%clk 0:00:13.5]} 63. Kh4 {[%clk 0:00:05.4]} 63...
Nd4 {[%clk 0:00:13.4]} 64. Kh3 {[%clk 0:00:05.7]} 64... Ne2 {[%clk 0:00:13.5]}
65. Kg2 {[%clk 0:00:06]} 65... Kg4 {[%clk 0:00:13.7]} 66. Bh2 {[%clk 0:00:05.9]}
66... Nxf4+ {[%clk 0:00:11.6]} 1/2-1/2

[Event "*** SCC Grand Prix: Titled Tuesday Blitz"]
[Site "Chess.com"]
[Date "2020.08.04"]
[Round "9"]
[White "LyonBeast"]
[Black "Alexander_Moskalenko"]
[Result "1/2-1/2"]
[WhiteElo "3033"]
[BlackElo "2846"]
[TimeControl "180+1"]
[EndTime "15:28:22 PDT"]
[Termination "Game drawn - insufficient material"]

1. d4 {[%clk 0:02:53.3]} 1... Nf6 {[%clk 0:03:00]} 2. c4 {[%clk 0:02:53]} 2...
e6 {[%clk 0:02:59.8]} 3. Nf3 {[%clk 0:02:51.9]} 3... d5 {[%clk 0:02:55.7]} 4. g3
{[%clk 0:02:51.7]} 4... dxc4 {[%clk 0:02:48.8]} 5. Bg2 {[%clk 0:02:50.8]} 5...
Bd7 {[%clk 0:02:48.4]} 6. Ne5 {[%clk 0:02:49]} 6... Bc6 {[%clk 0:02:48.3]} 7.
Nxc6 {[%clk 0:02:46.7]} 7... Nxc6 {[%clk 0:02:49.2]} 8. Bxc6+ {[%clk 0:02:46.8]}
8... bxc6 {[%clk 0:02:49]} 9. O-O {[%clk 0:02:41.1]} 9... c5 {[%clk 0:02:43.9]}
10. Be3 {[%clk 0:02:32.9]} 10... Nd5 {[%clk 0:02:41.7]} 11. Qa4+ {[%clk
0:02:30.3]} 11... Qd7 {[%clk 0:02:41.4]} 12. Qxc4 {[%clk 0:02:30.9]} 12... Nxe3
{[%clk 0:02:35.3]} 13. fxe3 {[%clk 0:02:31.8]} 13... cxd4 {[%clk 0:02:29.3]} 14.
exd4 {[%clk 0:02:31.3]} 14... Be7 {[%clk 0:02:28.9]} 15. Nc3 {[%clk 0:02:29.8]}
15... O-O {[%clk 0:02:28.4]} 16. Rad1 {[%clk 0:02:28.8]} 16... c6 {[%clk
0:02:14.3]} 17. e3 {[%clk 0:02:24.1]} 17... Rab8 {[%clk 0:02:14.6]} 18. b3
{[%clk 0:02:23.3]} 18... Rb4 {[%clk 0:02:13.7]} 19. Qe2 {[%clk 0:02:20.5]} 19...
a5 {[%clk 0:01:54.9]} 20. Na4 {[%clk 0:02:16.1]} 20... e5 {[%clk 0:01:52.1]} 21.
dxe5 {[%clk 0:02:13.9]} 21... Qe6 {[%clk 0:01:52.3]} 22. Nb2 {[%clk 0:02:14.4]}
22... Rb5 {[%clk 0:01:39.5]} 23. Nc4 {[%clk 0:02:11.6]} 23... a4 {[%clk
0:01:35.8]} 24. bxa4 {[%clk 0:02:04.9]} 24... Rb4 {[%clk 0:01:36.1]} 25. Rc1
{[%clk 0:02:05.2]} 25... Rxa4 {[%clk 0:01:36.5]} 26. Rc2 {[%clk 0:02:04.9]}
26... g6 {[%clk 0:01:31.2]} 27. Rd1 {[%clk 0:01:54.1]} 27... Rfa8 {[%clk
0:01:25.3]} 28. Rd4 {[%clk 0:01:44]} 28... Bc5 {[%clk 0:01:16.5]} 29. Rf4 {[%clk
0:01:41.1]} 29... Rb8 {[%clk 0:00:58.3]} 30. Kg2 {[%clk 0:01:31]} 30... Be7
{[%clk 0:00:55.9]} 31. Qf3 {[%clk 0:01:21.4]} 31... c5 {[%clk 0:00:47.9]} 32. h4
{[%clk 0:01:16.6]} 32... Rbb4 {[%clk 0:00:44.5]} 33. Qe4 {[%clk 0:01:09]} 33...
g5 {[%clk 0:00:39.5]} 34. hxg5 {[%clk 0:01:05.8]} 34... Bxg5 {[%clk 0:00:40.4]}
35. Rg4 {[%clk 0:00:43]} 35... h6 {[%clk 0:00:40.7]} 36. Kh2 {[%clk 0:00:39.4]}
36... Kg7 {[%clk 0:00:31.6]} 37. Kg2 {[%clk 0:00:28]} 37... Kf8 {[%clk
0:00:28.3]} 38. Kh2 {[%clk 0:00:27.4]} 38... Kg7 {[%clk 0:00:15.5]} 39. Kg2
{[%clk 0:00:27.1]} 39... Kf8 {[%clk 0:00:09.6]} 40. Kh2 {[%clk 0:00:27.3]} 40...
Qa6 {[%clk 0:00:09.4]} 41. a3 {[%clk 0:00:24.6]} 41... Rxa3 {[%clk 0:00:07.8]}
42. Qh7 {[%clk 0:00:22.5]} 42... Ra2 {[%clk 0:00:07.7]} 43. Nd6 {[%clk 0:00:15]}
43... Rxc2+ {[%clk 0:00:04.9]} 44. Qxc2 {[%clk 0:00:15.9]} 44... Rxg4 {[%clk
0:00:04.3]} 45. Qf5 {[%clk 0:00:16.6]} 45... Qe2+ {[%clk 0:00:03.9]} 46. Kh3
{[%clk 0:00:17.1]} 46... Rxg3+ {[%clk 0:00:02.3]} 47. Kxg3 {[%clk 0:00:18]}
47... Qxe3+ {[%clk 0:00:03.1]} 48. Kg2 {[%clk 0:00:17]} 48... Qf4 {[%clk
0:00:04]} 49. Qc8+ {[%clk 0:00:16.4]} 49... Kg7 {[%clk 0:00:03.8]} 50. Qxc5
{[%clk 0:00:15.6]} 50... Qg4+ {[%clk 0:00:02.8]} 51. Kf2 {[%clk 0:00:13.5]}
51... Be7 {[%clk 0:00:03.3]} 52. Qc3 {[%clk 0:00:09.9]} 52... Bh4+ {[%clk
0:00:02]} 53. Kf1 {[%clk 0:00:10.4]} 53... Qf4+ {[%clk 0:00:01.5]} 54. Kg2
{[%clk 0:00:10.8]} 54... Kh7 {[%clk 0:00:01.9]} 55. Qd3+ {[%clk 0:00:10.5]}
55... Kh8 {[%clk 0:00:02.4]} 56. Qf5 {[%clk 0:00:08.3]} 56... Qxf5 {[%clk
0:00:01.7]} 57. Nxf5 {[%clk 0:00:08.2]} 57... Bg5 {[%clk 0:00:02.6]} 58. Kf3
{[%clk 0:00:08.7]} 58... Kh7 {[%clk 0:00:03.2]} 59. Nd4 {[%clk 0:00:08.7]} 59...
Kg6 {[%clk 0:00:04.1]} 60. e6 {[%clk 0:00:09.2]} 60... fxe6 {[%clk 0:00:02.9]}
61. Nxe6 {[%clk 0:00:09.6]} 61... Kf5 {[%clk 0:00:03.6]} 62. Nd4+ {[%clk
0:00:09.2]} 62... Kg6 {[%clk 0:00:03.6]} 63. Ne2 {[%clk 0:00:10.1]} 63... h5
{[%clk 0:00:04.3]} 64. Ng3 {[%clk 0:00:10.6]} 64... h4 {[%clk 0:00:05.2]} 65.
Ne4 {[%clk 0:00:10.7]} 65... h3 {[%clk 0:00:05.9]} 66. Nf2 {[%clk 0:00:10.9]}
66... Bf4 {[%clk 0:00:06.8]} 67. Nxh3 {[%clk 0:00:10.9]} 1/2-1/2

[Event "*** SCC Grand Prix: Titled Tuesday Blitz"]
[Site "Chess.com"]
[Date "2020.08.04"]
[Round "9"]
[White "Donskov_AN"]
[Black "kosya4ok"]
[Result "0-1"]
[WhiteElo "2481"]
[BlackElo "2719"]
[TimeControl "180+1"]
[EndTime "15:28:32 PDT"]
[Termination "kosya4ok won on time"]

1. e4 {[%clk 0:03:00.9]} 1... e5 {[%clk 0:03:00]} 2. Nf3 {[%clk 0:03:01.1]} 2...
Nc6 {[%clk 0:03:00.4]} 3. Nc3 {[%clk 0:03:01.7]} 3... Nf6 {[%clk 0:02:59.9]} 4.
d4 {[%clk 0:03:01.9]} 4... exd4 {[%clk 0:02:59.8]} 5. Nxd4 {[%clk 0:03:02.4]}
5... Bb4 {[%clk 0:03:00.4]} 6. Nxc6 {[%clk 0:03:02.8]} 6... bxc6 {[%clk
0:03:01.3]} 7. Bd3 {[%clk 0:03:03.4]} 7... d5 {[%clk 0:03:01.9]} 8. exd5 {[%clk
0:03:04.3]} 8... O-O {[%clk 0:03:02.1]} 9. O-O {[%clk 0:03:04.8]} 9... Bg4
{[%clk 0:03:02.7]} 10. f3 {[%clk 0:02:59.4]} 10... Bh5 {[%clk 0:03:03.1]} 11.
dxc6 {[%clk 0:02:53.5]} 11... Qd4+ {[%clk 0:03:03.3]} 12. Kh1 {[%clk 0:02:53.4]}
12... Bxc3 {[%clk 0:03:03.9]} 13. bxc3 {[%clk 0:02:52.9]} 13... Qxc3 {[%clk
0:03:04.8]} 14. Bg5 {[%clk 0:02:46.8]} 14... Bg6 {[%clk 0:03:01.8]} 15. Bxf6
{[%clk 0:02:44.5]} 15... gxf6 {[%clk 0:03:02.6]} 16. f4 {[%clk 0:02:38.4]} 16...
Bxd3 {[%clk 0:02:46.8]} 17. cxd3 {[%clk 0:02:38.1]} 17... Rfd8 {[%clk
0:02:37.9]} 18. Qh5 {[%clk 0:02:36]} 18... Qxd3 {[%clk 0:02:34.6]} 19. f5 {[%clk
0:02:21.3]} 19... Rd4 {[%clk 0:02:12]} 20. h3 {[%clk 0:02:14.1]} 20... Re8
{[%clk 0:01:08.9]} 21. Qh6 {[%clk 0:02:12.1]} 21... Qg3 {[%clk 0:00:48.2]} 22.
Rf3 {[%clk 0:00:40.1]} 22... Qg5 {[%clk 0:00:29.4]} 23. Qxg5+ {[%clk 0:00:40.4]}
23... fxg5 {[%clk 0:00:30.3]} 24. Rb1 {[%clk 0:00:37.5]} 24... h5 {[%clk
0:00:29.7]} 25. f6 {[%clk 0:00:33.2]} 25... Rd5 {[%clk 0:00:16.6]} 26. Kh2
{[%clk 0:00:14.5]} 26... h4 {[%clk 0:00:12.5]} 27. Rfb3 {[%clk 0:00:08.6]} 27...
Re6 {[%clk 0:00:08.5]} 28. Rb5 {[%clk 0:00:04.4]} 28... Rxb5 {[%clk 0:00:02.7]}
29. Rxb5 {[%clk 0:00:05]} 29... Rxf6 {[%clk 0:00:03.1]} 30. Rxg5+ {[%clk
0:00:05.4]} 30... Kf8 {[%clk 0:00:03.6]} 31. Rg4 {[%clk 0:00:05.3]} 31... Rxc6
{[%clk 0:00:04]} 32. Rxh4 {[%clk 0:00:05.9]} 32... Rc2 {[%clk 0:00:03.8]} 33.
Ra4 {[%clk 0:00:06.1]} 33... c5 {[%clk 0:00:03.7]} 34. Rxa7 {[%clk 0:00:06.3]}
34... c4 {[%clk 0:00:04.6]} 35. Rc7 {[%clk 0:00:06.5]} 35... Ke8 {[%clk
0:00:05.2]} 36. a4 {[%clk 0:00:06.7]} 36... Kd8 {[%clk 0:00:06.1]} 37. Rc5
{[%clk 0:00:07.2]} 37... Kd7 {[%clk 0:00:07]} 38. a5 {[%clk 0:00:07.8]} 38...
Kd6 {[%clk 0:00:07.9]} 39. Rc8 {[%clk 0:00:08.1]} 39... Kd7 {[%clk 0:00:08.3]}
40. Rc5 {[%clk 0:00:07.5]} 40... Kd6 {[%clk 0:00:08.8]} 41. Rc8 {[%clk 0:00:07]}
41... Kd7 {[%clk 0:00:09.2]} 42. Rf8 {[%clk 0:00:06.4]} 42... Ke7 {[%clk
0:00:08.1]} 43. Rb8 {[%clk 0:00:04.6]} 43... Ra2 {[%clk 0:00:07.7]} 44. Rc8
{[%clk 0:00:04.6]} 44... Ra4 {[%clk 0:00:07.9]} 45. a6 {[%clk 0:00:04.6]} 45...
Kd7 {[%clk 0:00:08.2]} 46. Rc5 {[%clk 0:00:04.6]} 46... Kd6 {[%clk 0:00:08.7]}
47. Rc8 {[%clk 0:00:04.6]} 47... Kd5 {[%clk 0:00:09.3]} 48. Rc7 {[%clk
0:00:02.8]} 48... Rxa6 {[%clk 0:00:08.5]} 49. Rxf7 {[%clk 0:00:03.4]} 49... c3
{[%clk 0:00:08.2]} 50. Rf1 {[%clk 0:00:03]} 50... Rc6 {[%clk 0:00:07.6]} 51. h4
{[%clk 0:00:03]} 51... Ke4 {[%clk 0:00:07.7]} 52. Kh3 {[%clk 0:00:02.8]} 52...
Ke3 {[%clk 0:00:07.6]} 53. g4 {[%clk 0:00:02.8]} 53... c2 {[%clk 0:00:08.5]} 54.
Rc1 {[%clk 0:00:02.1]} 54... Kd2 {[%clk 0:00:08.1]} 55. Ra1 {[%clk 0:00:02.7]}
55... c1=Q {[%clk 0:00:07.8]} 56. Rxc1 {[%clk 0:00:03]} 56... Rxc1 {[%clk
0:00:08.7]} 57. g5 {[%clk 0:00:03.9]} 57... Ke3 {[%clk 0:00:09.3]} 58. Kg4
{[%clk 0:00:04.4]} 58... Ke4 {[%clk 0:00:09.8]} 59. h5 {[%clk 0:00:04.6]} 59...
Rg1+ {[%clk 0:00:09.1]} 60. Kh4 {[%clk 0:00:05.2]} 60... Kf5 {[%clk 0:00:10]}
61. g6 {[%clk 0:00:05.7]} 61... Rh1+ {[%clk 0:00:10.2]} 62. Kg3 {[%clk
0:00:05.1]} 62... Rxh5 {[%clk 0:00:11.1]} 63. g7 {[%clk 0:00:05.8]} 63... Rg5+
{[%clk 0:00:12]} 0-1

[Event "*** SCC Grand Prix: Titled Tuesday Blitz"]
[Site "Chess.com"]
[Date "2020.08.04"]
[Round "9"]
[White "effefe"]
[Black "kleopl"]
[Result "1-0"]
[WhiteElo "2191"]
[BlackElo "2443"]
[TimeControl "180+1"]
[EndTime "15:28:55 PDT"]
[Termination "effefe won by resignation"]

1. d4 {[%clk 0:03:00.9]} 1... Nf6 {[%clk 0:02:56.5]} 2. c4 {[%clk 0:03:00.9]}
2... g6 {[%clk 0:02:55.7]} 3. Nc3 {[%clk 0:03:00.9]} 3... d5 {[%clk 0:02:55.2]}
4. cxd5 {[%clk 0:02:56.3]} 4... Nxd5 {[%clk 0:02:56.1]} 5. h4 {[%clk 0:02:54.7]}
5... Nxc3 {[%clk 0:02:43.9]} 6. bxc3 {[%clk 0:02:54.7]} 6... c5 {[%clk
0:02:44.4]} 7. h5 {[%clk 0:02:45.8]} 7... Bg7 {[%clk 0:02:26.7]} 8. hxg6 {[%clk
0:02:39.8]} 8... hxg6 {[%clk 0:02:27.6]} 9. Rxh8+ {[%clk 0:02:39.2]} 9... Bxh8
{[%clk 0:02:28.5]} 10. Nf3 {[%clk 0:02:37.9]} 10... Nc6 {[%clk 0:02:27.4]} 11.
e3 {[%clk 0:02:24.3]} 11... Bg4 {[%clk 0:02:26.9]} 12. Bc4 {[%clk 0:02:00.9]}
12... e6 {[%clk 0:02:14.3]} 13. Qb3 {[%clk 0:01:43]} 13... Bxf3 {[%clk 0:01:56]}
14. gxf3 {[%clk 0:01:42.9]} 14... Rb8 {[%clk 0:01:43.6]} 15. Ba3 {[%clk
0:01:33.6]} 15... cxd4 {[%clk 0:01:35]} 16. cxd4 {[%clk 0:01:31.7]} 16... Qa5+
{[%clk 0:01:26.8]} 17. Kf1 {[%clk 0:01:24.8]} 17... Bf6 {[%clk 0:01:25.2]} 18.
Bd6 {[%clk 0:01:15.9]} 18... Rd8 {[%clk 0:01:19.7]} 19. Bg3 {[%clk 0:01:09.9]}
19... Rd7 {[%clk 0:01:05.8]} 20. Kg2 {[%clk 0:01:04.4]} 20... Qb4 {[%clk
0:01:02.9]} 21. Qxb4 {[%clk 0:00:47.8]} 21... Nxb4 {[%clk 0:01:03.8]} 22. Bb5
{[%clk 0:00:48.1]} 22... Nc6 {[%clk 0:01:01.7]} 23. Rc1 {[%clk 0:00:46.5]} 23...
Kd8 {[%clk 0:00:56.4]} 24. Bxc6 {[%clk 0:00:46.2]} 24... bxc6 {[%clk 0:00:56.8]}
25. Rxc6 {[%clk 0:00:46.7]} 25... Rb7 {[%clk 0:00:57.4]} 26. Ra6 {[%clk
0:00:42.9]} 26... Be7 {[%clk 0:00:56.8]} 27. Be5 {[%clk 0:00:38.4]} 27... Kc8
{[%clk 0:00:56.6]} 28. e4 {[%clk 0:00:33.6]} 28... Bd8 {[%clk 0:00:56.4]} 29. d5
{[%clk 0:00:25.6]} 29... exd5 {[%clk 0:00:56.5]} 30. exd5 {[%clk 0:00:26.5]}
30... Bb6 {[%clk 0:00:56.3]} 31. Ra4 {[%clk 0:00:21.8]} 31... Re7 {[%clk
0:00:55.1]} 32. f4 {[%clk 0:00:20.4]} 32... Kb7 {[%clk 0:00:52]} 33. d6 {[%clk
0:00:19.9]} 33... Rd7 {[%clk 0:00:52.1]} 34. Rc4 {[%clk 0:00:19.5]} 34... f6
{[%clk 0:00:45.8]} 35. Bxf6 {[%clk 0:00:18.8]} 35... Rxd6 {[%clk 0:00:46.2]} 36.
Bh4 {[%clk 0:00:12.6]} 36... Rd2 {[%clk 0:00:46.1]} 37. a4 {[%clk 0:00:13]}
37... Ra2 {[%clk 0:00:45.9]} 38. Kf3 {[%clk 0:00:11.7]} 38... Rd2 {[%clk
0:00:38.2]} 39. Bg3 {[%clk 0:00:09.8]} 39... Rd6 {[%clk 0:00:34.2]} 40. Kg4
{[%clk 0:00:09.6]} 40... Rf6 {[%clk 0:00:31]} 41. Kg5 {[%clk 0:00:09.5]} 41...
Re6 {[%clk 0:00:28.9]} 42. Bh4 {[%clk 0:00:06.6]} 42... Rd6 {[%clk 0:00:21.9]}
43. Bg3 {[%clk 0:00:06.6]} 43... Bd8+ {[%clk 0:00:20.2]} 44. Kg4 {[%clk
0:00:06.2]} 44... Ka6 {[%clk 0:00:20.3]} 45. f5 {[%clk 0:00:03.9]} 45... gxf5+
{[%clk 0:00:20.7]} 46. Kxf5 {[%clk 0:00:04.8]} 46... Rf6+ {[%clk 0:00:21]} 47.
Kg4 {[%clk 0:00:04.7]} 47... Rg6+ {[%clk 0:00:21.1]} 48. Kf3 {[%clk 0:00:04.7]}
48... Ka5 {[%clk 0:00:20.3]} 49. Ke2 {[%clk 0:00:04.3]} 49... Bb6 {[%clk
0:00:20.5]} 50. Re4 {[%clk 0:00:04]} 50... Rc6 {[%clk 0:00:19]} 51. f4 {[%clk
0:00:03.8]} 51... Rc2+ {[%clk 0:00:19]} 52. Kf3 {[%clk 0:00:04.2]} 52... Rc3+
{[%clk 0:00:19.1]} 53. Kg4 {[%clk 0:00:04.8]} 53... Rc1 {[%clk 0:00:18.9]} 54.
f5 {[%clk 0:00:04.6]} 54... Rg1 {[%clk 0:00:19.1]} 55. Kf3 {[%clk 0:00:03.1]}
55... Rf1+ {[%clk 0:00:18.7]} 56. Kg2 {[%clk 0:00:03.6]} 56... Rxf5 {[%clk
0:00:18.9]} 57. Rg4 {[%clk 0:00:02.2]} 57... Bc5 {[%clk 0:00:19]} 58. Be1+
{[%clk 0:00:02.4]} 58... Ka6 {[%clk 0:00:18.9]} 59. Rh4 {[%clk 0:00:02.8]} 59...
Bb6 {[%clk 0:00:18.8]} 60. Bc3 {[%clk 0:00:02.5]} 60... Rc5 {[%clk 0:00:18.9]}
61. Be1 {[%clk 0:00:02.3]} 61... Rc2+ {[%clk 0:00:19]} 62. Kf3 {[%clk
0:00:02.3]} 62... Ba5 {[%clk 0:00:18.3]} 63. Bxa5 {[%clk 0:00:01.6]} 63... Kxa5
{[%clk 0:00:19.2]} 64. Rh7 {[%clk 0:00:02]} 64... a6 {[%clk 0:00:19.2]} 65. Ke4
{[%clk 0:00:02.6]} 65... Rc4+ {[%clk 0:00:18.9]} 66. Kd3 {[%clk 0:00:03.5]}
66... Rxa4 {[%clk 0:00:18.8]} 67. Rh5+ {[%clk 0:00:03.9]} 67... Kb6 {[%clk
0:00:17.6]} 68. Kc3 {[%clk 0:00:04.6]} 68... Re4 {[%clk 0:00:17]} 69. Kb3 {[%clk
0:00:04.9]} 69... Re6 {[%clk 0:00:16.5]} 70. Rh7 {[%clk 0:00:04.9]} 70... Re3+
{[%clk 0:00:15.2]} 71. Kb4 {[%clk 0:00:04.4]} 71... Re4+ {[%clk 0:00:16.1]} 72.
Kb3 {[%clk 0:00:04.9]} 72... Re5 {[%clk 0:00:14.8]} 73. Rh4 {[%clk 0:00:04.4]}
73... Kb5 {[%clk 0:00:14.9]} 74. Ka3 {[%clk 0:00:05]} 74... a5 {[%clk 0:00:15]}
75. Rh3 {[%clk 0:00:04.9]} 75... Rc5 {[%clk 0:00:14.7]} 76. Rg3 {[%clk
0:00:05.2]} 76... Rf5 {[%clk 0:00:14.7]} 77. Rh3 {[%clk 0:00:05.5]} 77... a4
{[%clk 0:00:15.2]} 78. Rg3 {[%clk 0:00:05.8]} 78... Rd5 {[%clk 0:00:13.1]} 79.
Rh3 {[%clk 0:00:06]} 79... Kc4 {[%clk 0:00:12.8]} 80. Kxa4 {[%clk 0:00:04.8]}
80... Rd8 {[%clk 0:00:13]} 81. Ka3 {[%clk 0:00:05.1]} 1-0

[Event "*** SCC Grand Prix: Titled Tuesday Blitz"]
[Site "Chess.com"]
[Date "2020.08.04"]
[Round "10"]
[White "KaterynaLagno"]
[Black "Koalaskakistis"]
[Result "1-0"]
[WhiteElo "2718"]
[BlackElo "2508"]
[TimeControl "180+1"]
[EndTime "15:33:09 PDT"]
[Termination "KaterynaLagno won by checkmate"]

1. e4 {[%clk 0:03:00.9]} 1... e6 {[%clk 0:02:57.7]} 2. d4 {[%clk 0:03:00.3]}
2... d5 {[%clk 0:02:57.7]} 3. Nd2 {[%clk 0:03:00.9]} 3... Nf6 {[%clk 0:02:57.4]}
4. e5 {[%clk 0:02:59.8]} 4... Nfd7 {[%clk 0:02:57.8]} 5. Bd3 {[%clk 0:02:59.4]}
5... c5 {[%clk 0:02:58]} 6. c3 {[%clk 0:02:59.7]} 6... Nc6 {[%clk 0:02:58.5]} 7.
Ndf3 {[%clk 0:02:59.7]} 7... Be7 {[%clk 0:02:54.5]} 8. Ne2 {[%clk 0:02:57.7]}
8... g5 {[%clk 0:02:54.4]} 9. O-O {[%clk 0:02:54.9]} 9... g4 {[%clk 0:02:52.6]}
10. Ne1 {[%clk 0:02:54.6]} 10... b6 {[%clk 0:02:43.9]} 11. Be3 {[%clk
0:02:33.6]} 11... a5 {[%clk 0:02:35.2]} 12. Nf4 {[%clk 0:02:33]} 12... h5 {[%clk
0:02:32.9]} 13. f3 {[%clk 0:02:30.2]} 13... cxd4 {[%clk 0:02:22.1]} 14. cxd4
{[%clk 0:02:26.8]} 14... Nb4 {[%clk 0:02:16.4]} 15. fxg4 {[%clk 0:02:13]} 15...
hxg4 {[%clk 0:02:10.9]} 16. Nxe6 {[%clk 0:02:09.6]} 16... fxe6 {[%clk
0:02:04.8]} 17. Bg6# {[%clk 0:02:07.9]} 1-0

[Event "*** SCC Grand Prix: Titled Tuesday Blitz"]
[Site "Chess.com"]
[Date "2020.08.04"]
[Round "10"]
[White "Sam_ChessMood"]
[Black "BlueWizzard"]
[Result "1-0"]
[WhiteElo "2799"]
[BlackElo "2705"]
[TimeControl "180+1"]
[EndTime "15:33:30 PDT"]
[Termination "Sam_ChessMood won by resignation"]

1. d4 {[%clk 0:03:00.8]} 1... Nf6 {[%clk 0:02:58.2]} 2. c4 {[%clk 0:02:59.8]}
2... g6 {[%clk 0:02:57.2]} 3. Nc3 {[%clk 0:02:58.5]} 3... d5 {[%clk 0:02:57.2]}
4. cxd5 {[%clk 0:02:57.4]} 4... Nxd5 {[%clk 0:02:58.1]} 5. e4 {[%clk 0:02:57.4]}
5... Nxc3 {[%clk 0:02:58.4]} 6. bxc3 {[%clk 0:02:58.3]} 6... c5 {[%clk
0:02:57.6]} 7. Bc4 {[%clk 0:02:54.7]} 7... Qc7 {[%clk 0:02:57.8]} 8. d5 {[%clk
0:02:43.3]} 8... Bg7 {[%clk 0:02:50.5]} 9. Ne2 {[%clk 0:02:42]} 9... O-O {[%clk
0:02:50.7]} 10. O-O {[%clk 0:02:41.5]} 10... Nd7 {[%clk 0:02:49.2]} 11. f4
{[%clk 0:02:39.4]} 11... a6 {[%clk 0:02:44.7]} 12. a4 {[%clk 0:02:36.9]} 12...
b5 {[%clk 0:02:39.3]} 13. axb5 {[%clk 0:02:33.9]} 13... Nb6 {[%clk 0:02:39.6]}
14. Bd3 {[%clk 0:02:28.3]} 14... c4 {[%clk 0:02:36.4]} 15. Bc2 {[%clk
0:02:28.4]} 15... axb5 {[%clk 0:02:27.5]} 16. Rxa8 {[%clk 0:02:27.9]} 16... Nxa8
{[%clk 0:02:28.4]} 17. h3 {[%clk 0:02:25.4]} 17... Qc5+ {[%clk 0:02:19.1]} 18.
Kh1 {[%clk 0:02:24.4]} 18... e6 {[%clk 0:02:13.2]} 19. d6 {[%clk 0:02:14.5]}
19... e5 {[%clk 0:02:13.1]} 20. d7 {[%clk 0:02:14.2]} 20... Nb6 {[%clk
0:01:59.7]} 21. d8=Q {[%clk 0:02:11.8]} 21... Qe7 {[%clk 0:01:54.4]} 1-0